bitfinex/quotes_SOLUSD_20250531
["timestamp","ask_amount","ask_price","bid_price","bid_amount"]
[1748697084858,20.32297346,155.83,155.78,20.32459945]
[1748697085084,20.32297346,155.83,155.78,13.90532546]
[1748697085269,13.90532546,155.82,155.76,13.90532546]
[1748697086087,20.32327434,155.82,155.76,20.32539328]
[1748697086875,13.90532546,155.82,155.77,13.90532546]
[1748697087749,6.41697756,155.84,155.8,13.90532546]
[1748697088057,13.90532546,155.81,155.75,6.42040041]
[1748697088257,13.90532546,155.81,155.76,13.90532546]
[1748697088461,13.90532546,155.8,155.75,13.90532546]
[1748697088968,13.90532546,155.8,155.74,7.96506667]
[1748697089141,13.90532546,155.8,155.74,6.42086667]
[1748697089344,13.90532546,155.8,155.74,20.32619213]
[1748697089776,20.32399383,155.8,155.74,20.32619213]
[1748697090158,13.90532546,155.8,155.74,20.32619213]
[1748697090361,13.90532546,155.8,155.75,13.90532546]
[1748697090665,20.32383249,155.8,155.74,20.32619213]
[1748697091061,13.90532546,155.79,155.74,20.32619213]
[1748697091259,13.90532546,155.8,155.74,20.32619213]
[1748697091443,20.32393376,155.8,155.74,20.32619213]
[1748697092377,6.4186083,155.8,155.73,31.04658757]
[1748697092548,13.90532546,155.78,155.73,31.04658757]
[1748697092749,13.90532546,155.78,155.72,26.92236866]
[1748697092953,13.90532546,155.77,155.72,6.4216432]
[1748697093173,13.90532546,155.77,155.71,20.32745]
[1748697093965,13.90532546,155.75,155.7,6.42251532]
[1748697094282,13.90532546,155.75,155.7,20.32784078]
[1748697094594,13.90532546,155.76,155.71,13.90532546]
[1748697094889,13.90532546,155.76,155.71,6.42208001]
[1748697095052,13.90532546,155.76,155.71,20.32740547]
[1748697096667,13.90532546,155.75,155.71,6.42208001]
[1748697096965,13.90532546,155.74,155.7,6.42231458]
[1748697097155,6.42019032,155.76,155.69,6.42289705]
[1748697097156,13.90532546,155.73,155.69,6.42289705]
[1748697097887,6.42019032,155.76,155.68,20.06012546]
[1748697097888,13.90532546,155.72,155.68,6.42336638]
[1748697098451,13.90532546,155.73,155.68,6.42336638]
[1748697098862,13.90532546,155.72,155.67,6.42372807]
[1748697099259,13.90532546,155.71,155.66,20.32945604]
[1748697099474,13.90532546,155.7,155.66,6.42413058]
[1748697100157,13.90532546,155.71,155.66,6.42413058]
[1748697102066,13.90532546,155.7,155.66,6.42413058]
[1748697102756,13.90532546,155.7,155.64,13.90532546]
[1748697102757,13.90532546,155.7,155.65,6.42467073]
[1748697103065,13.90532546,155.69,155.64,20.33024865]
[1748697103264,13.90532546,155.7,155.65,13.90532546]
[1748697103786,13.90532546,155.7,155.64,20.33024865]
[1748697104576,13.90532546,155.7,155.66,6.42425799]
[1748697107100,10.68,155.74,155.67,13.90532546]
[1748697107386,31.00629519,155.74,155.68,13.90532546]
[1748697107580,13.90532546,155.73,155.68,13.90532546]
[1748697108985,13.90532546,155.73,155.69,6.4230201]
[1748697109490,24.58532546,155.74,155.69,6.4230201]
[1748697110294,13.90532546,155.73,155.69,6.4230201]
[1748697110866,0.14216157,155.72,155.67,13.90532546]
[1748697111064,20.32672722,155.73,155.66,6.4241442]
[1748697111065,13.90532546,155.69,155.66,6.4241442]
[1748697111291,13.90532546,155.69,155.64,6.42508352]
[1748697111489,13.90532546,155.69,155.64,20.33040898]
[1748697113680,13.90532546,155.71,155.66,13.90532546]
[1748697113884,17.10110831,155.74,155.68,13.90532546]
[1748697114085,31.00643377,155.74,155.69,13.90532546]
[1748697114268,170.67893851,155.75,155.71,13.90532546]
[1748697114269,144.67893851,155.75,155.71,13.90532546]
[1748697114592,13.90532546,155.8,155.74,13.90532546]
[1748697114777,13.90532546,155.79,155.74,13.90532546]
[1748697115297,13.90532546,155.79,155.75,6.42054574]
[1748697116368,13.90532546,155.8,155.75,6.42054574]
[1748697117210,13.90532546,155.79,155.74,13.90532546]
[1748697117788,14.04748703,155.8,155.74,13.90532546]
[1748697117970,0.14216157,155.8,155.74,13.90532546]
[1748697118292,13.90532546,155.8,155.75,13.90532546]
[1748697118487,10.7,155.81,155.76,13.90532546]
[1748697118791,24.60532546,155.81,155.76,13.90532546]
[1748697119466,24.60532546,155.81,155.76,20.3251158]
[1748697119902,13.90532546,155.82,155.76,20.3251158]
[1748697120266,167.04848678,155.83,155.76,6.41979034]
[1748697120571,22.36954827,155.83,155.79,13.90532546]
[1748697120804,22.36954827,155.83,155.8,13.90532546]
[1748697120967,180.85062695,155.86,155.8,13.90532546]
[1748697121168,180.85062695,155.86,155.77,1.6603]
[1748697121169,13.90532546,155.83,155.77,1.6603]
[1748697121474,166.94530149,155.86,155.77,1.6603]
[1748697121475,13.90532546,155.84,155.78,20.32424499]
[1748697122097,13.90532546,155.83,155.78,20.32424499]
[1748697122487,20.32269078,155.83,155.78,20.32424499]
[1748697122692,20.32269078,155.83,155.78,13.90532546]
[1748697122893,20.32269078,155.83,155.77,6.4196721]
[1748697122894,13.90532546,155.82,155.77,20.32499756]
[1748697123972,13.90532546,155.84,155.79,13.90532546]
[1748697124197,167.08758485,155.86,155.79,13.90532546]
[1748697124370,13.90532546,155.84,155.79,13.90532546]
[1748697124801,13.90532546,155.83,155.77,20.32499756]
[1748697125105,13.90532546,155.83,155.78,13.90532546]
[1748697125309,13.90532546,155.84,155.78,13.90532546]
[1748697125489,0.14216157,155.85,155.79,13.90532546]
[1748697125677,14.04748703,155.85,155.8,13.90532546]
[1748697126302,14.04748703,155.85,155.8,20.32356635]
[1748697126495,14.04748703,155.85,155.8,6.41824089]
[1748697126699,13.90532546,155.84,155.78,13.90532546]
[1748697126996,13.90532546,155.84,155.78,20.32451591]
[1748697127187,13.90532546,155.84,155.79,13.90532546]
[1748697127577,13.90532546,155.84,155.78,20.32451591]
[1748697127898,13.90532546,155.84,155.79,13.90532546]
[1748697128398,13.90532546,155.84,155.8,6.41848523]
[1748697128605,160.52914373,155.86,155.81,13.90532546]
[1748697128786,160.52914373,155.86,155.82,13.90532546]
[1748697129107,15.85020522,155.86,155.82,13.90532546]
[1748697129602,15.85020522,155.86,155.81,13.90532546]
[1748697130593,29.75553068,155.86,155.82,6.4176614]
[1748697132509,29.75553068,155.86,155.8,29.95153855]
[1748697132510,29.75553068,155.86,155.8,13.90532546]
[1748697132697,13.90532546,155.84,155.79,13.90532546]
[1748697133599,22.26626869,155.86,155.79,13.90532546]
[1748697133786,13.90532546,155.84,155.8,6.41848523]
[1748697135004,13.90532546,155.83,155.79,6.4188077]
[1748697135217,13.90532546,155.82,155.79,6.4188077]
[1748697135419,15.85020522,155.86,155.79,6.4188077]
[1748697135420,13.90532546,155.83,155.79,6.4188077]
[1748697136209,13.90532546,155.83,155.78,20.32463474]
[1748697136598,13.90532546,155.84,155.78,20.32463474]
[1748697137407,14.04748703,155.85,155.79,13.90532546]
[1748697137887,13.90532546,155.84,155.79,13.90532546]
[1748697138089,13.90532546,155.84,155.8,6.41848523]
[1748697138410,29.75553068,155.86,155.8,20.32381069]
[1748697138786,13.90532546,155.85,155.8,20.32381069]
[1748697139213,13.90532546,155.85,155.8,6.41848523]
[1748697139912,13.90532546,155.84,155.8,6.41848523]
[1748697140127,13.90532546,155.84,155.79,6.41872868]
[1748697140488,20.32216713,155.84,155.79,6.41872868]
[1748697141117,13.90532546,155.83,155.79,6.41872868]
[1748697141401,6.41684167,155.84,155.79,6.41872868]
[1748697141402,13.90532546,155.84,155.79,6.41872868]
[1748697142186,13.90532546,155.83,155.78,13.90532546]
[1748697142392,13.90532546,155.83,155.76,6.5309]
[1748697142393,13.90532546,155.82,155.77,13.90532546]
[1748697142895,13.90532546,155.79,155.75,6.42045055]
[1748697143205,14.04748703,155.82,155.77,13.90532546]
[1748697145031,20.46519262,155.82,155.77,6.41961693]
[1748697145204,14.04748703,155.82,155.77,6.41961693]
[1748697145728,20.46527927,155.82,155.77,6.41961693]
[1748697145907,13.90532546,155.81,155.77,6.41961693]
[1748697146501,14.04748703,155.82,155.77,6.41961693]
[1748697148319,13.90532546,155.81,155.76,20.32533433]
[1748697148524,13.90532546,155.8,155.75,20.32572129]
[1748697148728,13.90532546,155.79,155.74,20.32612674]
[1748697149030,13.90532546,155.77,155.7,1.5206]
[1748697149242,13.90532546,155.76,155.71,20.32752056]
[1748697149402,13.90532546,155.76,155.71,6.4221951]
[1748697149403,20.32557507,155.76,155.71,6.4221951]
[1748697150019,13.90532546,155.75,155.71,6.4221951]
[1748697150432,13.90532546,155.75,155.7,6.42260757]
[1748697150725,20.32587861,155.75,155.7,6.42260757]
[1748697151218,13.90532546,155.75,155.7,6.42260757]
[1748697151801,13.90532546,155.75,155.7,20.32793303]
[1748697152343,20.32594315,155.75,155.7,6.42260757]
[1748697152819,20.32594315,155.75,155.69,20.3282724]
[1748697152997,13.90532546,155.74,155.69,20.3282724]
[1748697153192,6.42061769,155.75,155.68,17.10336247]
[1748697153193,13.90532546,155.73,155.68,17.10336247]
[1748697153410,13.90532546,155.73,155.68,31.00868793]
[1748697154325,13.90532546,155.72,155.67,20.32902212]
[1748697154524,13.90532546,155.72,155.67,6.42369666]
[1748697154772,20.32722024,155.72,155.67,6.42369666]
[1748697155194,20.32722024,155.72,155.66,20.32952639]
[1748697155395,13.90532546,155.71,155.66,20.32952639]
[1748697156502,13.90532546,155.7,155.65,20.32990708]
[1748697156922,13.90532546,155.71,155.65,20.32990708]
[1748697157145,13.90532546,155.7,155.65,20.32990708]
[1748697157443,13.90532546,155.68,155.62,1.6604]
[1748697157603,13.90532546,155.67,155.61,6.42632221]
[1748697157799,13.90532546,155.68,155.62,13.90532546]
[1748697158413,13.90532546,155.68,155.61,6.42632221]
[1748697158414,14.04748703,155.67,155.61,20.33164767]
[1748697159331,13.90532546,155.66,155.61,20.33164767]
[1748697159533,6.42433679,155.66,155.61,20.33164767]
[1748697159755,13.90532546,155.66,155.61,20.33164767]
[1748697160723,20.32977961,155.66,155.61,13.90532546]
[1748697161018,20.32977961,155.66,155.6,17.10656617]
[1748697161227,13.90532546,155.64,155.6,17.10656617]
[1748697161419,13.90532546,155.64,155.6,6.42656617]
[1748697161619,13.90532546,155.64,155.59,20.33242878]
[1748697162246,13.90532546,155.63,155.59,6.42710332]
[1748697163144,14.04748703,155.67,155.61,13.90532546]
[1748697163631,13.90532546,155.66,155.61,13.90532546]
[1748697164338,13.90532546,155.65,155.61,6.42632221]
[1748697165115,13.90532546,155.65,155.58,32.3136]
[1748697165316,13.90532546,155.63,155.59,6.42707443]
[1748697165524,32.42425799,155.66,155.62,13.90532546]
[1748697165525,26.0,155.66,155.62,13.90532546]
[1748697165740,14.04748703,155.67,155.62,13.90532546]
[1748697166128,13.90532546,155.66,155.61,13.90532546]
[1748697166722,13.90532546,155.66,155.61,6.42611795]
[1748697167625,13.90532546,155.66,155.61,20.33144341]
[1748697168351,14.04748703,155.67,155.61,20.33144341]
[1748697168646,20.47133699,155.67,155.61,20.33144341]
[1748697169037,13.90532546,155.66,155.61,20.33144341]
[1748697172446,39.90532546,155.68,155.63,13.90532546]
[1748697172653,13.90532546,155.68,155.63,13.90532546]
[1748697173239,20.32889921,155.68,155.63,13.90532546]
[1748697173642,13.90532546,155.66,155.61,20.33144341]
[1748697174141,0.14216157,155.65,155.56,6.4281288]
[1748697174460,6.42549636,155.63,155.57,13.90532546]
[1748697174641,13.90532546,155.62,155.57,13.90532546]
[1748697175354,20.33145055,155.62,155.57,13.90532546]
[1748697175727,42.39462314,155.65,155.58,13.90532546]
[1748697175728,13.90532546,155.63,155.58,13.90532546]
[1748697176545,20.47174502,155.66,155.6,13.90532546]
[1748697176738,20.32958345,155.66,155.6,13.90532546]
[1748697176938,13.90532546,155.66,155.61,13.90532546]
[1748697177139,20.32923436,155.67,155.62,13.90532546]
[1748697179057,20.32923436,155.67,155.61,20.33154791]
[1748697179552,20.32923436,155.67,155.62,13.90532546]
[1748697179553,13.90532546,155.67,155.62,13.90532546]
[1748697180076,20.32929358,155.67,155.62,13.90532546]
[1748697180240,20.32929358,155.67,155.62,20.33111622]
[1748697180657,20.32929358,155.67,155.6,6.6272]
[1748697180658,20.32929358,155.67,155.61,20.33151398]
[1748697180836,20.32929358,155.67,155.62,13.90532546]
[1748697181487,20.32929358,155.67,155.61,20.33151398]
[1748697181881,13.90532546,155.67,155.61,20.33151398]
[1748697182197,13.90532546,155.67,155.62,13.90532546]
[1748697182553,18.33985979,155.68,155.61,6.42618852]
[1748697182554,11.77414378,155.68,155.63,13.90532546]
[1748697183251,25.67946924,155.68,155.63,13.90532546]
[1748697183451,25.67946924,155.68,155.62,13.90532546]
[1748697184095,32.10299174,155.68,155.62,20.33089775]
[1748697184655,13.90532546,155.67,155.62,13.90532546]
[1748697185074,13.90532546,155.66,155.6,26.95913414]
[1748697185386,18.19766628,155.68,155.59,20.33233718]
[1748697185387,13.90532546,155.65,155.59,20.33233718]
[1748697185755,13.90532546,155.65,155.6,13.90532546]
[1748697185957,13.90532546,155.65,155.6,20.33192576]
[1748697186151,13.90532546,155.66,155.6,20.33192576]
[1748697186357,13.90532546,155.66,155.61,13.90532546]
[1748697186662,13.90532546,155.66,155.6,20.33192576]
[1748697187961,20.32958942,155.66,155.6,20.33192576]
[1748697189059,14.04748703,155.65,155.6,13.90532546]
[1748697189778,13.90532546,155.64,155.59,6.42703165]
[1748697189967,13.90532546,155.64,155.59,20.33235711]
[1748697191487,0.28432314,155.66,155.59,20.33235711]
[1748697191785,13.90532546,155.64,155.59,20.33235711]
[1748697192091,6.56656125,155.66,155.61,13.90532546]
[1748697192882,6.56656125,155.66,155.61,20.33163127]
[1748697193400,20.47188671,155.66,155.61,20.33163127]
[1748697193556,13.90532546,155.65,155.6,20.33198953]
[1748697193757,13.90532546,155.65,155.6,13.90532546]
[1748697194471,13.90532546,155.65,155.6,20.33205113]
[1748697194680,13.90532546,155.65,155.6,13.90532546]
[1748697194989,20.33015519,155.65,155.6,13.90532546]
[1748697195179,13.90532546,155.62,155.58,6.42744208]
[1748697197686,13.90532546,155.63,155.58,20.33276754]
[1748697197891,20.33090917,155.63,155.58,20.33276754]
[1748697198795,13.90532546,155.63,155.58,20.33276754]
[1748697199366,20.33083386,155.63,155.58,20.33276754]
[1748697199896,13.90532546,155.63,155.58,20.33276754]
[1748697200791,13.90532546,155.64,155.58,20.33276754]
[1748697201768,20.3296547,155.66,155.61,13.90532546]
[1748697202193,31.16931835,155.67,155.61,13.90532546]
[1748697202374,20.32974692,155.66,155.61,13.90532546]
[1748697203492,13.90532546,155.65,155.6,20.33192517]
[1748697204272,13.90532546,155.65,155.6,6.42659971]
[1748697204488,20.33014327,155.65,155.6,6.42659971]
[1748697206464,13.90532546,155.62,155.56,13.90532546]
[1748697206666,13.90532546,155.61,155.56,13.90532546]
[1748697206865,13.90532546,155.61,155.54,32.42921435]
[1748697207097,13.90532546,155.63,155.57,13.90532546]
[1748697207392,13.90532546,155.64,155.59,13.90532546]
[1748697207696,20.47230484,155.65,155.59,13.90532546]
[1748697208087,32.42439122,155.66,155.61,13.90532546]
[1748697208396,13.90532546,155.65,155.59,13.90532546]
[1748697208692,13.90532546,155.64,155.58,20.33274819]
[1748697208998,13.90532546,155.63,155.58,20.33274819]
[1748697209479,13.90532546,155.63,155.57,6.42767697]
[1748697209796,6.42473305,155.65,155.57,20.33300243]
[1748697209988,0.14216157,155.64,155.58,13.90532546]
[1748697210195,13.90532546,155.63,155.58,13.90532546]
[1748697210580,20.33090223,155.63,155.58,20.33280037]
[1748697212199,20.33090223,155.63,155.57,20.3333]
[1748697212395,20.33090223,155.63,155.56,20.33356381]
[1748697212396,13.90532546,155.62,155.56,20.33356381]
[1748697214179,13.90532546,155.61,155.56,6.42823835]
[1748697214383,20.33136164,155.62,155.56,20.33356381]
[1748697214603,6.42603618,155.62,155.57,13.90532546]
[1748697215206,20.33136164,155.62,155.56,20.33356381]
[1748697216283,13.90532546,155.61,155.56,20.33356381]
[1748697216684,13.90532546,155.61,155.56,6.42823835]
[1748697217207,13.90532546,155.61,155.55,31.17400116]
[1748697217399,13.90532546,155.6,155.55,24.74532546]
[1748697217605,13.90532546,155.59,155.55,10.84]
[1748697218489,13.90532546,155.58,155.55,10.84]
[1748697219030,13.90532546,155.58,155.54,6.42908279]
[1748697221102,13.90532546,155.58,155.53,6.42962772]
[1748697221419,13.90532546,155.56,155.52,17.2499513]
[1748697221610,13.90532546,155.56,155.52,10.82]
[1748697221909,13.90532546,155.56,155.51,32.43031614]
[1748697222614,13.90532546,155.56,155.51,46.3356416]
[1748697222989,20.33372448,155.56,155.51,32.43031614]
[1748697223309,13.90532546,155.56,155.51,46.3356416]
[1748697223886,13.90532546,155.56,155.51,32.43031614]
[1748697227216,13.90532546,155.55,155.51,6.43031614]
[1748697228520,13.90532546,155.54,155.51,6.43031614]
[1748697228720,13.90532546,155.55,155.51,6.43031614]
[1748697228910,14.04748703,155.56,155.51,6.43031614]
[1748697229299,13.90532546,155.55,155.51,6.43031614]
[1748697231427,144.67893851,155.58,155.53,13.90532546]
[1748697231625,158.58426397,155.58,155.53,13.90532546]
[1748697232009,144.67893851,155.58,155.53,13.90532546]
[1748697232403,144.67893851,155.58,155.54,13.90532546]
[1748697233213,144.67893851,155.58,155.55,6.42880102]
[1748697233718,144.67893851,155.58,155.55,20.33412648]
[1748697233924,0.14216157,155.6,155.56,13.90532546]
[1748697235498,6.56891846,155.6,155.55,20.33412648]
[1748697235701,20.47424392,155.6,155.55,20.33412648]
[1748697236107,13.90532546,155.59,155.54,6.42896825]
[1748697237510,13.90532546,155.59,155.54,13.90532546]
[1748697239805,20.33268175,155.59,155.54,6.42890656]
[1748697240143,13.90532546,155.58,155.54,6.42890656]
[1748697240313,13.90532546,155.58,155.53,20.33488415]
[1748697240507,13.90532546,155.58,155.53,20.33493116]
[1748697240830,13.90532546,155.58,155.53,6.4296057]
[1748697241031,13.90532546,155.58,155.53,20.33493116]
[1748697242321,20.33291812,155.58,155.53,20.33493116]
[1748697244132,13.90532546,155.55,155.49,6.5209]
[1748697244312,13.90532546,155.56,155.5,13.90532546]
[1748697244512,13.90532546,155.56,155.51,13.90532546]
[1748697245417,13.90532546,155.56,155.51,20.33574657]
[1748697245729,14.04748703,155.58,155.53,13.90532546]
[1748697245930,0.14216157,155.58,155.53,13.90532546]
[1748697246617,13.90532546,155.57,155.52,13.90532546]
[1748697247634,20.33346872,155.57,155.51,13.90532546]
[1748697247835,20.47517621,155.58,155.52,13.90532546]
[1748697249007,20.47517621,155.58,155.52,20.33506417]
[1748697250133,20.33342279,155.57,155.52,6.42973871]
[1748697250918,13.90532546,155.56,155.5,20.33619362]
[1748697251120,20.33342279,155.57,155.51,13.90532546]
[1748697252025,20.33342279,155.57,155.52,6.43004115]
[1748697252434,0.14216157,155.58,155.52,6.43004115]
[1748697252435,6.56985129,155.58,155.52,6.43004115]
[1748697252618,20.47517675,155.58,155.52,20.33536661]
[1748697253422,13.90532546,155.57,155.52,6.43004115]
[1748697253739,20.33342744,155.57,155.52,6.43004115]
[1748697255621,13.90532546,155.56,155.5,6.43086816]
[1748697255840,6.5698888,155.58,155.51,13.90532546]
[1748697256136,0.14216157,155.58,155.52,13.90532546]
[1748697256337,1.5145,155.61,155.56,13.90532546]
[1748697256741,15.41982546,155.61,155.55,13.90532546]
[1748697257040,21.84625421,155.61,155.55,13.90532546]
[1748697257545,15.41982546,155.61,155.56,13.90532546]
[1748697257729,15.41982546,155.61,155.56,20.33334696]
[1748697258739,21.8461686,155.61,155.56,20.33334696]
[1748697259348,21.8461686,155.61,155.56,6.4280215]
[1748697260634,7.94084314,155.61,155.56,6.4280215]
[1748697260834,21.8461686,155.61,155.56,6.4280215]
[1748697261550,21.8461686,155.61,155.55,20.33396068]
[1748697264150,21.8461686,155.61,155.55,13.90532546]
[1748697265853,21.8461686,155.61,155.56,6.42838776]
[1748697268457,1.5145,155.61,155.57,13.90532546]
[1748697269641,1.5145,155.61,155.56,20.33371322]
[1748697270451,15.41982546,155.61,155.56,20.33371322]
[1748697270756,21.8461944,155.61,155.56,20.33371322]
[1748697270957,13.90532546,155.6,155.55,20.33402901]
[1748697271270,15.41982546,155.61,155.56,13.90532546]
[1748697271554,1.5145,155.61,155.57,13.90532546]
[1748697272077,1.5145,155.61,155.56,13.90532546]
[1748697272634,1.5145,155.61,155.57,6.42797454]
[1748697273071,7.94084656,155.61,155.56,20.3335966]
[1748697273671,21.84617202,155.61,155.56,20.3335966]
[1748697273876,13.90532546,155.6,155.55,6.42869265]
[1748697274914,20.33218795,155.6,155.55,6.42869265]
[1748697275556,20.33218795,155.6,155.54,20.33440988]
[1748697277361,20.33218795,155.6,155.54,13.90532546]
[1748697277546,13.90532546,155.59,155.53,13.90532546]
[1748697277946,13.90532546,155.58,155.52,31.05524199]
[1748697278368,13.90532546,155.57,155.52,31.05524199]
[1748697278771,13.90532546,155.57,155.52,24.62532546]
[1748697279068,13.90532546,155.57,155.52,10.72]
[1748697279555,20.33365605,155.57,155.52,10.72]
[1748697279868,13.90532546,155.55,155.5,20.33607458]
[1748697281665,20.33414171,155.55,155.5,20.33607458]
[1748697283566,13.90532546,155.55,155.5,20.33607458]
[1748697283877,21.94252558,155.56,155.5,20.33607458]
[1748697284250,1.6087,155.56,155.52,13.90532546]
[1748697284669,15.51402546,155.56,155.51,13.90532546]
[1748697285359,15.51402546,155.56,155.52,6.43004115]
[1748697285776,1.6087,155.56,155.52,6.43004115]
[1748697286649,15.51402546,155.56,155.52,6.43004115]
[1748697286851,15.51402546,155.56,155.51,20.33561484]
[1748697288472,21.94251586,155.56,155.51,20.33561484]
[1748697293178,15.51402546,155.56,155.51,20.33561484]
[1748697296562,15.51402546,155.56,155.49,16.07811627]
[1748697296563,13.90532546,155.55,155.49,6.43128175]
[1748697296767,13.90532546,155.55,155.49,20.33660721]
[1748697297411,20.33424149,155.55,155.49,6.43128175]
[1748697297574,20.33424149,155.55,155.49,20.33660721]
[1748697299086,13.90532546,155.55,155.49,20.33660721]
[1748697300063,20.3341279,155.55,155.49,20.33660721]
[1748697300483,8.03719538,155.56,155.49,20.33660721]
[1748697300681,13.90532546,155.55,155.5,13.90532546]
[1748697301085,21.94247922,155.56,155.51,13.90532546]
[1748697302197,13.90532546,155.54,155.49,20.33660721]
[1748697302495,0.14216157,155.55,155.5,13.90532546]
[1748697302669,13.90532546,155.55,155.5,13.90532546]
[1748697303368,21.94247922,155.56,155.51,6.43045463]
[1748697303576,13.90532546,155.55,155.49,20.33660721]
[1748697304277,13.90532546,155.55,155.5,13.90532546]
[1748697304495,13.90532546,155.54,155.46,6.43252283]
[1748697304699,13.90532546,155.53,155.46,20.33784829]
[1748697305183,13.90532546,155.53,155.47,13.90532546]
[1748697305385,20.33506906,155.53,155.47,20.3372444]
[1748697306898,13.90532546,155.53,155.48,13.90532546]
[1748697307091,0.14216157,155.55,155.5,13.90532546]
[1748697307399,14.04748703,155.55,155.5,13.90532546]
[1748697308094,20.47635634,155.55,155.5,13.90532546]
[1748697308280,20.47635634,155.55,155.49,20.33647743]
[1748697308477,6.42886931,155.55,155.49,20.33647743]
[1748697308794,20.33419477,155.55,155.49,20.33647743]
[1748697309900,13.90532546,155.55,155.49,20.33647743]
[1748697310074,20.33417392,155.55,155.49,20.33647743]
[1748697315483,13.90532546,155.55,155.49,20.33647743]
[1748697315707,21.94242458,155.56,155.51,13.90532546]
[1748697316901,15.51402546,155.56,155.5,13.90532546]
[1748697317394,21.94241446,155.56,155.5,13.90532546]
[1748697318180,144.67893851,155.57,155.51,13.90532546]
[1748697318486,144.67893851,155.57,155.53,13.90532546]
[1748697318985,144.67893851,155.57,155.53,20.33492614]
[1748697319388,13.90532546,155.58,155.53,20.33492614]
[1748697319595,156.49799557,155.61,155.56,13.90532546]
[1748697319596,170.40332103,155.61,155.56,13.90532546]
[1748697319782,156.49799557,155.61,155.57,13.90532546]
[1748697320900,156.49799557,155.61,155.57,20.33296435]
[1748697322003,11.81905706,155.61,155.58,13.90532546]
[1748697322203,11.81905706,155.61,155.59,13.90532546]
[1748697322881,26.0,155.65,155.6,20.33206067]
[1748697323088,26.0,155.65,155.61,13.90532546]
[1748697323413,146.20943851,155.67,155.61,13.90532546]
[1748697323414,166.53876276,155.67,155.61,13.90532546]
[1748697323907,13.90532546,155.66,155.61,13.90532546]
[1748697324096,13.90532546,155.66,155.6,20.33206067]
[1748697324610,13.90532546,155.65,155.6,13.90532546]
[1748697324985,20.3301758,155.65,155.6,20.33205361]
[1748697325387,13.90532546,155.65,155.6,20.33205361]
[1748697325691,20.33001362,155.65,155.6,20.33205361]
[1748697325896,6.42468816,155.65,155.6,20.33205361]
[1748697326099,6.42468816,155.65,155.59,13.90532546]
[1748697326100,13.90532546,155.64,155.59,13.90532546]
[1748697326285,6.42468816,155.65,155.59,13.90532546]
[1748697326609,13.90532546,155.64,155.58,6.42744781]
[1748697326914,13.90532546,155.64,155.59,13.90532546]
[1748697327297,20.33052828,155.64,155.59,13.90532546]
[1748697329393,20.33052828,155.64,155.58,13.90532546]
[1748697329394,13.90532546,155.63,155.58,13.90532546]
[1748697329607,13.90532546,155.62,155.57,13.90532546]
[1748697329806,13.90532546,155.62,155.56,10.7]
[1748697329807,13.90532546,155.62,155.56,24.60532546]
[1748697331493,6.42632221,155.61,155.56,24.60532546]
[1748697331694,6.42632221,155.61,155.56,13.90532546]
[1748697331894,20.33164767,155.61,155.56,13.90532546]
[1748697332711,20.33164767,155.61,155.55,13.90532546]
[1748697333306,20.33164767,155.61,155.56,13.90532546]
[1748697334737,13.90532546,155.6,155.55,13.90532546]
[1748697335298,20.3323969,155.6,155.55,13.90532546]
[1748697335793,20.3323969,155.6,155.55,20.33395153]
[1748697336200,20.3323969,155.6,155.55,13.90532546]
[1748697336704,13.90532546,155.58,155.53,13.90532546]
[1748697336908,13.90532546,155.55,155.5,1.6277]
[1748697337113,0.28432314,155.58,155.49,26.77866009]
[1748697337114,13.90532546,155.54,155.49,26.77866009]
[1748697337325,20.33462275,155.54,155.49,6.4423]
[1748697337527,20.33462275,155.54,155.49,12.87349192]
[1748697337708,20.33420561,155.55,155.5,13.90532546]
[1748697338228,6.42888015,155.55,155.5,13.90532546]
[1748697339324,13.90532546,155.54,155.49,6.4423]
[1748697339529,13.90532546,155.54,155.49,13.90532546]
[1748697339902,13.90532546,155.55,155.5,13.90532546]
[1748697340321,13.90532546,155.54,155.47,6.43206489]
[1748697340505,6.42850336,155.56,155.48,13.90532546]
[1748697340506,13.90532546,155.53,155.48,13.90532546]
[1748697340827,13.90532546,155.53,155.48,20.3369222]
[1748697341514,20.33502327,155.53,155.48,20.3369222]
[1748697342224,20.33465292,155.54,155.49,13.90532546]
[1748697343121,20.33465292,155.54,155.49,20.33651495]
[1748697343423,13.90532546,155.55,155.5,13.90532546]
[1748697343625,20.33370175,155.57,155.51,13.90532546]
[1748697344816,13.90532546,155.56,155.51,20.33566021]
[1748697346306,32.19906157,155.58,155.53,13.90532546]
[1748697346307,6.42775408,155.58,155.53,13.90532546]
[1748697346505,144.67893851,155.59,155.53,13.90532546]
[1748697346506,151.10623564,155.59,155.53,13.90532546]
[1748697346714,165.0115611,155.59,155.53,13.90532546]
[1748697347110,165.0115611,155.59,155.54,13.90532546]
[1748697347706,165.0115611,155.59,155.53,20.33483769]
[1748697348013,165.0115611,155.59,155.54,13.90532546]
[1748697349217,165.0115611,155.59,155.53,13.90532546]
[1748697349411,144.67893851,155.59,155.55,13.90532546]
[1748697350732,6.4268566,155.6,155.55,20.33393255]
[1748697351031,6.42648929,155.61,155.56,13.90532546]
[1748697351231,24.58532546,155.62,155.56,13.90532546]
[1748697351413,10.68,155.62,155.58,13.90532546]
[1748697351615,22.53994047,155.63,155.58,13.90532546]
[1748697351814,30.01964346,155.63,155.58,13.90532546]